fUST/lending_fUST_20250628
["ID","MTS","AMOUNT","RATE_DAILY","PERIOD"]
[368286770,1751092249994,-460.0,0.00020821,2]
[368286771,1751092250004,-1432.058852,0.00020821,2]
[368286772,1751092250014,-151.0,0.00020821,2]
[368286773,1751092250024,-3961.88,0.00020821,2]
[368286774,1751092250034,-460.0,0.00020821,2]
[368286775,1751092250043,-738.64,0.00020821,2]
[368286776,1751092250051,-251.333474,0.00020821,2]
[368286777,1751092250060,-1261.08,0.00020821,2]
[368286778,1751092250069,-251.333474,0.00020821,2]
[368286779,1751092250078,-460.0,0.00020821,2]
[368286780,1751092250088,-460.0,0.00020821,2]
[368286781,1751092250097,-1780.21,0.00020821,2]
[368286782,1751092250106,-151.0,0.00020821,2]
[368286783,1751092250115,-500.0,0.00020821,2]
[368286784,1751092250125,-830.04,0.00020821,2]
[368286785,1751092250135,-151.0,0.00020821,2]
[368286786,1751092250144,-493.72,0.00020821,2]
[368286787,1751092250155,-460.0,0.00020821,2]
[368286788,1751092250164,-3913.47,0.00020821,2]
[368286789,1751092250173,-1917.93,0.00020821,2]
[368286790,1751092250183,-460.0,0.00020821,2]
[368286791,1751092250192,-460.0,0.00020821,2]
[368286792,1751092250201,-460.0,0.00020821,2]
[368286793,1751092250211,-460.0,0.00020821,2]
[368286794,1751092250220,-151.0,0.00020821,2]
[368286795,1751092250230,-151.0,0.00020821,2]
[368286796,1751092250240,-486.94,0.00020821,2]
[368286797,1751092250249,-460.0,0.00020821,2]
[368286798,1751092250258,-151.0,0.00020821,2]
[368286799,1751092250268,-218.60353,0.00020821,2]
[368286800,1751092250276,-218.60353,0.00020821,2]
[368286801,1751092250285,-1763.75,0.00020821,2]
[368286802,1751092250294,-1417.63,0.00020821,2]
[368286803,1751092250304,-151.0,0.00020821,2]
[368286804,1751092250313,-1500.0,0.0002083,2]
[368286805,1751092250322,-170.43098,0.00020834,4]
[368286806,1751092250332,-151.0,0.00020865,2]
[368286807,1751092250341,-151.0,0.00020865,2]
[368286808,1751092250350,-151.0,0.00020865,2]
[368286809,1751092250359,-252.339413,0.00020865,2]
[368286810,1751092250368,-252.339413,0.00020865,2]
[368286811,1751092250377,-7958.93867809,0.00020866,4]
[368286812,1751092250386,-690.642,0.00020876,2]
[368286813,1751092250395,-420.0,0.00020899,2]
[368286814,1751092250405,-716.195754,0.00020931,2]
[368286815,1751092250414,-500.0,0.00020958,15]
[368286816,1751092250423,-352.0,0.00020958,2]
[368286817,1751092250432,-742.6949969,0.00020986,2]
[368286818,1751092250441,-50000.0,0.00021,2]
[368286819,1751092250451,-151.0,0.00021,2]
[368286820,1751092250460,-151.0,0.00021,2]
[368286821,1751092250469,-151.0,0.00021,2]
[368286822,1751092250478,-288.270806,0.00021,2]
[368286823,1751092250487,-288.270806,0.00021,2]
[368286824,1751092250497,-269.1667008,0.00021,2]
[368286825,1751092250506,-5209.47194379,0.00021,2]
[368286826,1751092250515,-201.33996909,0.00021,2]
[368286827,1751092250525,-212.9,0.00021007,3]
[368286828,1751092250535,-770.17471178,0.00021041,2]
[368286829,1751092250545,-277.336715,0.00021095,2]
[368286830,1751092250554,-277.336715,0.00021095,2]
[368286831,1751092250563,-164.961058,0.00021095,2]
[368286832,1751092250573,-164.961058,0.00021095,2]
[368286833,1751092250582,-460.0,0.00021095,2]
[368286834,1751092250591,-544.66,0.00021095,2]
[368286835,1751092250600,-460.0,0.00021095,2]
[368286836,1751092250610,-460.0,0.00021095,2]
[368286837,1751092250619,-151.0,0.00021095,2]
[368286838,1751092250628,-151.0,0.00021095,2]
[368286839,1751092250637,-151.0,0.00021095,2]
[368286840,1751092250647,-783.34,0.00021095,2]
[368286841,1751092250656,-151.0,0.00021095,2]
[368286842,1751092250666,-460.0,0.00021095,2]
[368286843,1751092250675,-151.0,0.00021095,2]
[368286844,1751092250684,-151.0,0.00021095,2]
[368286845,1751092250693,-151.0,0.00021095,2]
[368286846,1751092250702,-481.237781,0.00021095,2]
[368286847,1751092250711,-460.0,0.00021095,2]
[368286848,1751092250720,-481.237781,0.00021095,2]
[368286849,1751092250729,-460.0,0.00021095,2]
[368286850,1751092250739,-460.0,0.00021095,2]
[368286851,1751092250749,-855.13,0.00021095,2]
[368286852,1751092250759,-1621.43,0.00021095,2]
[368286853,1751092250768,-460.0,0.00021095,2]
[368286854,1751092250781,-460.0,0.00021095,2]
[368286855,1751092250791,-963.72,0.00021095,2]
[368286856,1751092250800,-460.0,0.00021095,2]
[368286857,1751092250809,-460.0,0.00021095,2]
[368286858,1751092250820,-564.17851885,0.00021095,2]
[368286859,1751092250829,-460.0,0.00021095,2]
[368286860,1751092250839,-460.0,0.00021095,2]
[368286861,1751092250849,-2847.84,0.00021095,2]
[368286862,1751092250859,-460.0,0.00021095,2]
[368286863,1751092250868,-762.68,0.00021095,2]
[368286864,1751092250877,-688.06,0.00021095,2]
[368286865,1751092250886,-637.58,0.00021095,2]
[368286866,1751092250895,-460.0,0.00021095,2]
[368286867,1751092250904,-2645.71,0.00021095,2]
[368286868,1751092250914,-603.09,0.00021095,2]
[368286869,1751092250922,-460.0,0.00021095,2]
[368286870,1751092250932,-749.34,0.00021095,2]
[368286871,1751092250940,-460.0,0.00021095,2]
[368286872,1751092250950,-2283.61,0.00021095,2]
[368286873,1751092250959,-460.0,0.00021095,2]
[368286874,1751092250969,-1062.61,0.00021095,2]
[368286875,1751092250978,-460.0,0.00021095,2]
[368286876,1751092250987,-460.0,0.00021095,2]
[368286877,1751092250997,-460.0,0.00021095,2]
[368286878,1751092251006,-460.0,0.00021095,2]
[368286879,1751092251015,-460.0,0.00021095,2]
[368286880,1751092251024,-460.0,0.00021095,2]
[368286881,1751092251034,-503.12,0.00021095,2]
[368286882,1751092251043,-460.0,0.00021095,2]
[368286883,1751092251052,-546.11,0.00021095,2]
[368286884,1751092251062,-460.0,0.00021095,2]
[368286885,1751092251071,-2827.27,0.00021095,2]
[368286886,1751092251080,-460.0,0.00021095,2]
[368286887,1751092251090,-460.0,0.00021095,2]
[368286888,1751092251099,-2063.9,0.00021095,2]
[368286889,1751092251108,-597.96,0.00021095,2]
[368286890,1751092251117,-1025.68,0.00021095,2]
[368286891,1751092251127,-3087.12,0.00021095,2]
[368286892,1751092251136,-758.94,0.00021095,2]
[368286893,1751092251145,-460.0,0.00021095,2]
[368286894,1751092251155,-477.9223269,0.00021095,2]
[368286895,1751092251164,-460.0,0.00021095,2]
[368286896,1751092251173,-460.0,0.00021095,2]
[368286897,1751092251184,-1845.16,0.00021095,2]
[368286898,1751092251193,-460.0,0.00021095,2]
[368286899,1751092251202,-1876.63,0.00021095,2]
[368286900,1751092251211,-460.0,0.00021095,2]
[368286901,1751092251220,-3961.88,0.00021095,2]
[368286902,1751092251230,-460.0,0.00021095,2]
[368286903,1751092251239,-738.64,0.00021095,2]
[368286904,1751092251248,-460.0,0.00021095,2]
[368286905,1751092251257,-1261.08,0.00021095,2]
[368286906,1751092251266,-460.0,0.00021095,2]
[368286907,1751092251277,-1780.21,0.00021095,2]
[368286908,1751092251286,-830.04,0.00021095,2]
[368286909,1751092251295,-493.72,0.00021095,2]
[368286910,1751092251304,-460.0,0.00021095,2]
[368286911,1751092251313,-3913.47,0.00021095,2]
[368286912,1751092251322,-1917.93,0.00021095,2]
[368286913,1751092251332,-460.0,0.00021095,2]
[368286914,1751092251341,-460.0,0.00021095,2]
[368286915,1751092251351,-460.0,0.00021095,2]
[368286916,1751092251360,-460.0,0.00021095,2]
[368286917,1751092251369,-153.682818,0.00021095,2]
[368286918,1751092251379,-486.94,0.00021095,2]
[368286919,1751092251388,-460.0,0.00021095,2]
[368286920,1751092251397,-151.0,0.00021095,2]
[368286921,1751092251407,-218.60353,0.00021095,2]
[368286922,1751092251416,-218.60353,0.00021095,2]
[368286923,1751092251528,-1763.75,0.00021095,2]
[368286924,1751092251538,-1417.63,0.00021095,2]
[368286925,1751092251548,-151.0,0.00021095,2]
[368286926,1751092251558,-7958.93867809,0.00021107,4]
[368286927,1751092251567,-212.9,0.00021247,4]
[368286928,1751092251576,-1597.5425311,0.00021263,2]
[368286929,1751092251586,-170.43098,0.00021266,5]
[368286930,1751092251596,-151.0,0.000213,4]
[368286931,1751092251605,-1008.02982385,0.00021341,2]
[368286932,1751092251614,-197.389886,0.00021348,2]
[368286933,1751092251624,-151.0,0.00021348,2]
[368286934,1751092251634,-151.0,0.00021348,2]
[368286935,1751092251643,-151.0,0.00021348,2]
[368286936,1751092251653,-151.0,0.00021348,2]
[368286937,1751092251662,-151.0,0.00021348,2]
[368286938,1751092251672,-151.0,0.00021348,2]
[368286939,1751092251681,-279.163928,0.00021348,2]
[368286940,1751092251690,-151.0,0.00021348,2]
[368286941,1751092251699,-229.444968,0.00021348,2]
[368286942,1751092251709,-229.874466,0.00021348,2]
[368286943,1751092251718,-229.874466,0.00021348,2]
[368286944,1751092251729,-151.0,0.00021348,2]
[368286945,1751092251739,-7958.93867809,0.00021348,5]
[368286946,1751092251748,-2000.0,0.00021363,2]
[368286947,1751092251757,-5000.0,0.00021369,2]
[368286948,1751092251766,-151.0,0.00021369,2]
[368286949,1751092251780,-544.66,0.00021369,2]
[368286950,1751092251789,-460.0,0.00021369,2]
[368286951,1751092251798,-460.0,0.00021369,2]
[368286952,1751092251807,-783.34,0.00021369,2]
[368286953,1751092251816,-460.0,0.00021369,2]
[368286954,1751092251826,-460.0,0.00021369,2]
[368286955,1751092251835,-151.0,0.00021369,2]
[368286956,1751092251845,-151.0,0.00021369,2]
[368286957,1751092251855,-460.0,0.00021369,2]
[368286958,1751092251864,-252.339413,0.00021369,2]
[368286959,1751092251874,-252.339413,0.00021369,2]
[368286960,1751092251883,-460.0,0.00021369,2]
[368286961,1751092251893,-151.0,0.00021369,2]
[368286962,1751092251903,-151.0,0.00021369,2]
[368286963,1751092251913,-855.13,0.00021369,2]
[368286964,1751092251922,-1621.43,0.00021369,2]
[368286965,1751092251932,-460.0,0.00021369,2]
[368286966,1751092251942,-430.33427341,0.00021369,2]
[368286967,1751092251951,-963.72,0.00021369,2]
[368286968,1751092251961,-547.19396051,0.00021369,2]
[368286969,1751092251970,-460.0,0.00021369,2]
[368286970,1751092251980,-152.082159,0.00021369,2]
[368286971,1751092251989,-460.0,0.00021369,2]
[368286972,1751092251998,-460.0,0.00021369,2]
[368286973,1751092252007,-2847.84,0.00021369,2]
[368286974,1751092252016,-460.0,0.00021369,2]
[368286975,1751092252026,-762.68,0.00021369,2]
[368286976,1751092252035,-688.06,0.00021369,2]
[368286977,1751092252044,-637.58,0.00021369,2]
[368286978,1751092252057,-460.0,0.00021369,2]
[368286979,1751092252067,-2645.71,0.00021369,2]
[368286980,1751092252077,-500.0,0.00021369,16]
[368286981,1751092252087,-460.0,0.00021369,2]
[368286982,1751092252096,-749.34,0.00021369,2]
[368286983,1751092252105,-370.20535212,0.00021369,2]
[368286984,1751092252114,-151.0,0.00021369,2]
[368286985,1751092252124,-2283.61,0.00021369,2]
[368286986,1751092252134,-222.66372,0.00021369,2]
[368286987,1751092252143,-425.67611252,0.00021369,2]
[368286988,1751092252154,-1062.61,0.00021369,2]
[368286989,1751092252164,-460.0,0.00021369,2]
[368286990,1751092252173,-460.0,0.00021369,2]
[368286991,1751092252184,-460.0,0.00021369,2]
[368286992,1751092252193,-460.0,0.00021369,2]
[368286993,1751092252203,-460.0,0.00021369,2]
[368286994,1751092252212,-460.0,0.00021369,2]
[368286995,1751092252222,-503.12,0.00021369,2]
[368286996,1751092252231,-460.0,0.00021369,2]
[368286997,1751092252240,-546.11,0.00021369,2]
[368286998,1751092252251,-460.0,0.00021369,2]
[368286999,1751092252260,-2827.27,0.00021369,2]
[368287000,1751092252269,-460.0,0.00021369,2]
[368287001,1751092252279,-460.0,0.00021369,2]
[368287002,1751092252288,-2063.9,0.00021369,2]
[368287003,1751092252298,-597.96,0.00021369,2]
[368287004,1751092252307,-1025.68,0.00021369,2]
[368287005,1751092252316,-3087.12,0.00021369,2]
[368287006,1751092252326,-758.94,0.00021369,2]
[368287007,1751092252335,-460.0,0.00021369,2]
[368287008,1751092252346,-460.0,0.00021369,2]
[368287009,1751092252354,-460.0,0.00021369,2]
[368287010,1751092252364,-1845.16,0.00021369,2]
[368287011,1751092252373,-263.173189,0.00021369,2]
[368287012,1751092252382,-151.0,0.00021369,2]
[368287013,1751092252391,-460.0,0.00021369,2]
[368287014,1751092252401,-1876.63,0.00021369,2]
[368287015,1751092252410,-263.173189,0.00021369,2]
[368287016,1751092252419,-151.0,0.00021369,2]
[368287017,1751092252429,-151.0,0.00021369,2]
[368287018,1751092252438,-1432.058852,0.00021369,2]
[368287019,1751092252447,-460.0,0.00021369,2]
[368287020,1751092252456,-1432.058852,0.00021369,2]
[368287021,1751092252465,-151.0,0.00021369,2]
[368287022,1751092252474,-3961.88,0.00021369,2]
[368287023,1751092252484,-460.0,0.00021369,2]
[368287024,1751092252493,-738.64,0.00021369,2]
[368287025,1751092252502,-251.333474,0.00021369,2]
[368287026,1751092252511,-251.333474,0.00021369,2]
[368287027,1751092252520,-460.0,0.00021369,2]
[368287028,1751092252530,-1261.08,0.00021369,2]
[368287029,1751092252539,-460.0,0.00021369,2]
[368287030,1751092252548,-153.1629,0.00021369,2]
[368287031,1751092252558,-1780.21,0.00021369,2]
[368287032,1751092252567,-830.04,0.00021369,2]
[368287033,1751092252576,-493.72,0.00021369,2]
[368287034,1751092252586,-460.0,0.00021369,2]
[368287035,1751092252595,-3913.47,0.00021369,2]
[368287036,1751092252604,-1917.93,0.00021369,2]
[368287037,1751092252613,-460.0,0.00021369,2]
[368287038,1751092252623,-460.0,0.00021369,2]
[368287039,1751092252632,-460.0,0.00021369,2]
[368287040,1751092252641,-460.0,0.00021369,2]
[368287041,1751092252651,-151.0,0.00021369,2]
[368287042,1751092252660,-486.94,0.00021369,2]
[368287043,1751092252670,-460.0,0.00021369,2]
[368287044,1751092252679,-1417.63,0.00021369,2]
[368287045,1751092252688,-1763.75,0.00021369,2]
[368287046,1751092252697,-1500.0,0.00021378,2]
[368287047,1751092252706,-472.98,0.00021421,2]
[368287048,1751092252715,-261.0,0.00021476,2]
[368287049,1751092252724,-212.9,0.00021486,4]
[368287050,1751092252733,-170.43098,0.00021495,6]
[368287051,1751092252742,-500.0,0.00021497,2]
[368287052,1751092252751,-500.0,0.00021497,2]
[368287053,1751092252760,-30786.85726181,0.00021499,2]
[368287054,1751092252886,-562.7876311,0.00021499,2]
[368287055,1751092252898,-382.26311669,0.00021499,2]
[368287056,1751092252910,-4957.81781365,0.00021499,2]
[368287057,1751092252921,-1207.4957768,0.00021499,2]
[368287058,1751092253116,-460.0,0.00019178,2]
[368287059,1751092253125,-460.0,0.00019452,2]
[368287060,1751092253135,-1517.54,0.00020273,2]
[368287061,1751092253144,-1517.54,0.00020547,2]
[368287062,1751092253154,-1517.54,0.00020821,2]
[368287063,1751092253163,-1517.54,0.00021095,2]
[368287064,1751092253172,-1517.54,0.00021369,2]
[368287065,1751092253181,-23586.50988995,0.00021499,2]
[368287066,1751092253190,-61777.76437669,0.000215,2]
[368287067,1751092253205,-257.3663636,0.000215,2]
[368287068,1751092253469,-460.0,0.00019178,2]
[368287069,1751092253478,-1.19292084,0.00019178,2]
[368287070,1751092253490,-299.22994934,0.00019178,2]
[368287071,1751092253499,-426.6,0.00019452,2]
[368287072,1751092253508,-151.0,0.00020821,2]
[368287073,1751092253518,-88.21235196,0.00021095,2]
[368287074,1751092253530,-62.78764804,0.00021095,2]
[368287075,1751092253540,-3718.6757635,0.000215,2]
[368287076,1751092253747,-460.0,0.00019178,2]
[368287077,1751092253756,-460.0,0.00019452,2]
[368287078,1751092253766,-460.0,0.00019726,2]
[368287079,1751092253778,-151.0,0.00020821,2]
[368287080,1751092253893,-9339.03810136,0.000215,2]
[368287081,1751092253904,-672.255498,0.000215,2]
[368287082,1751092253913,-237.553352,0.000215,2]
[368287083,1751092253922,-288.270806,0.000215,2]
[368287084,1751092253932,-288.270806,0.000215,2]
[368287085,1751092253941,-151.0,0.000215,2]
[368287086,1751092253950,-218.60353,0.000215,2]
[368287087,1751092253959,-218.60353,0.000215,2]
[368287088,1751092253969,-155.321216,0.000215,2]
[368287089,1751092253979,-500.0,0.0002151,2]
[368287090,1751092253988,-500.0,0.0002151,2]
[368287091,1751092253997,-500.0,0.0002151,2]
[368287092,1751092254006,-500.0,0.0002151,2]
[368287093,1751092254015,-500.0,0.0002151,2]
[368287094,1751092254026,-500.0,0.0002151,2]
[368287095,1751092254037,-426.60139623,0.0002151,2]
[368287097,1751092986750,352.293591,0.00013699,2]
[368287099,1751093225090,-255.0,0.00018228,2]
[368287100,1751093225111,-211.0,0.0001836,2]
[368287101,1751093225132,-161.11602301,0.0001836,2]
[368287158,1751093431991,-300.0,0.0001836,2]
[368287160,1751093432001,-1200.0,0.0001836,2]
[368287162,1751093432010,-300.0,0.0001836,2]
[368287164,1751093432020,-22729.25132118,0.00018361,2]
[368287166,1751093432032,-2170.74867882,0.00018361,2]
[368287168,1751093432041,-199.00273102,0.0001851,2]
[368287170,1751093432051,-1059.33278714,0.000189,2]
[368287172,1751093432060,-587.66951767,0.00019078,2]
[368287174,1751093432069,-374.0,0.00019109,2]
[368287176,1751093432078,-652.98,0.00019168,3]
[368287178,1751093432088,-326.49,0.00019168,3]
[368287180,1751093432098,-163.24,0.00019168,3]
[368287182,1751093432108,-489.75,0.00019168,3]
[368287185,1751093432118,-464.79938646,0.00019178,2]
[368287186,1751093432127,-231.16722154,0.00019178,2]
[368287188,1751093432136,-463.81758682,0.00019178,2]
[368287190,1751093432146,-405.34345864,0.00019178,2]
[368287192,1751093432155,-157.29771641,0.00019178,2]
[368287194,1751093432164,-460.0,0.00019178,2]
[368287196,1751093432173,-465.23709192,0.00019178,2]
[368287198,1751093432183,-463.93424586,0.00019178,2]
[368287200,1751093432192,-259.40644674,0.00019178,2]
[368287202,1751093432201,-460.0,0.00019178,2]
[368287204,1751093432210,-461.99643723,0.00019178,2]
[368287206,1751093432219,-460.0,0.00019178,2]
[368287208,1751093432228,-460.0,0.00019178,2]
[368287210,1751093432238,-460.0,0.00019178,2]
[368287212,1751093432248,-224.90383819,0.00019178,2]
[368287214,1751093432259,-460.0,0.00019178,2]
[368287216,1751093432268,-412.70090933,0.00019178,2]
[368287218,1751093432278,-460.0,0.00019178,2]
[368287221,1751093432288,-419.22318209,0.00019178,2]
[368287223,1751093432297,-239.11198304,0.00019178,2]
[368287225,1751093432307,-311.4210506,0.00019178,2]
[368287227,1751093432316,-437.39857999,0.00019178,2]
[368287229,1751093432327,-432.25402961,0.00019178,2]
[368287231,1751093432336,-460.0,0.00019178,2]
[368287233,1751093432345,-432.63142927,0.00019178,2]
[368287235,1751093432355,-460.0,0.00019178,2]
[368287237,1751093432364,-460.0,0.00019178,2]
[368287239,1751093432374,-233.12817313,0.00019178,2]
[368287241,1751093432387,-460.0,0.00019178,2]
[368287243,1751093432401,-396.70137211,0.00019178,2]
[368287246,1751093432414,-460.0,0.00019178,2]
[368287248,1751093432428,-460.0,0.00019178,2]
[368287251,1751093432440,-460.0,0.00019178,2]
[368287253,1751093432453,-190.35,0.00019178,2]
[368287255,1751093432463,-472.30094572,0.00019178,2]
[368287257,1751093432476,-460.0,0.00019178,2]
[368287260,1751093432488,-460.0,0.00019178,2]
[368287262,1751093432500,-404.54385434,0.00019178,2]
[368287264,1751093432512,-394.8219935,0.00019178,2]
[368287267,1751093432524,-460.0,0.00019178,2]
[368287269,1751093432537,-430.0,0.00019178,2]
[368287271,1751093432549,-460.0,0.00019178,2]
[368287274,1751093432561,-460.0,0.00019178,2]
[368287276,1751093432573,-460.0,0.00019178,2]
[368287278,1751093432591,-460.0,0.00019178,2]
[368287281,1751093432603,-460.0,0.00019178,2]
[368287283,1751093432614,-460.0,0.00019178,2]
[368287285,1751093432626,-460.0,0.00019178,2]
[368287287,1751093432638,-460.0,0.00019178,2]
[368287289,1751093432651,-437.49212001,0.00019178,2]
[368287292,1751093432663,-510.28281057,0.00019178,2]
[368287294,1751093432676,-460.0,0.00019178,2]
[368287296,1751093432688,-500.0,0.00019178,2]
[368287299,1751093432700,-500.0,0.00019178,2]
[368287300,1751093432712,-564.43,0.00019178,2]
[368287302,1751093432722,-460.0,0.00019178,2]
[368287304,1751093432732,-502.99098845,0.00019178,2]
[368287306,1751093432743,-460.0,0.00019178,2]
[368287308,1751093432755,-460.0,0.00019178,2]
[368287310,1751093432767,-460.0,0.00019178,2]
[368287312,1751093432779,-460.0,0.00019178,2]
[368287314,1751093432791,-460.0,0.00019178,2]
[368287316,1751093432804,-460.0,0.00019178,2]
[368287318,1751093432816,-437.39020635,0.00019178,2]
[368287320,1751093432828,-460.0,0.00019178,2]
[368287322,1751093432839,-895.79,0.00019178,2]
[368287324,1751093432852,-460.0,0.00019178,2]
[368287326,1751093432865,-460.0,0.00019178,2]
[368287327,1751093432877,-460.0,0.00019178,2]
[368287328,1751093432888,-253.61704415,0.00019178,2]
[368287329,1751093432899,-460.0,0.00019178,2]
[368287331,1751093432909,-500.0,0.00019178,2]
[368287333,1751093432919,-460.0,0.00019178,2]
[368287335,1751093432930,-460.0,0.00019178,2]
[368287336,1751093432943,-500.0,0.00019178,2]
[368287337,1751093432955,-460.0,0.00019178,2]
[368287338,1751093432967,-460.0,0.00019178,2]
[368287339,1751093432978,-460.0,0.00019178,2]
[368287340,1751093432988,-460.0,0.00019178,2]
[368287341,1751093432999,-460.0,0.00019178,2]
[368287342,1751093433010,-460.0,0.00019178,2]
[368287343,1751093433021,-460.0,0.00019178,2]
[368287344,1751093433034,-460.0,0.00019178,2]
[368287345,1751093433045,-460.0,0.00019178,2]
[368287346,1751093433057,-500.0,0.00019178,2]
[368287347,1751093433067,-460.0,0.00019178,2]
[368287348,1751093433078,-460.0,0.00019178,2]
[368287349,1751093433089,-460.0,0.00019178,2]
[368287350,1751093433099,-460.0,0.00019178,2]
[368287351,1751093433110,-460.0,0.00019178,2]
[368287352,1751093433121,-460.0,0.00019178,2]
[368287353,1751093433133,-460.0,0.00019178,2]
[368287354,1751093433143,-460.0,0.00019178,2]
[368287355,1751093433154,-460.0,0.00019178,2]
[368287356,1751093433165,-460.0,0.00019178,2]
[368287357,1751093433176,-460.0,0.00019178,2]
[368287358,1751093433187,-181.64323192,0.00019178,2]
[368287359,1751093433198,-416.08000112,0.00019178,2]
[368287360,1751093433209,-460.0,0.00019178,2]
[368287361,1751093433221,-460.0,0.00019178,2]
[368287362,1751093433232,-460.0,0.00019178,2]
[368287363,1751093433244,-500.0,0.00019178,2]
[368287364,1751093433254,-462.31480342,0.00019178,2]
[368287365,1751093433266,-460.0,0.00019178,2]
[368287366,1751093433277,-460.0,0.00019178,2]
[368287367,1751093433287,-460.0,0.00019178,2]
[368287368,1751093433299,-460.0,0.00019178,2]
[368287369,1751093433309,-460.0,0.00019178,2]
[368287370,1751093433320,-460.0,0.00019178,2]
[368287371,1751093433331,-516.98269427,0.00019178,2]
[368287372,1751093433342,-460.0,0.00019178,2]
[368287373,1751093433352,-460.0,0.00019178,2]
[368287374,1751093433363,-460.0,0.00019178,2]
[368287375,1751093433374,-460.90261419,0.00019178,2]
[368287376,1751093433385,-461.42772347,0.00019178,2]
[368287377,1751093433395,-500.0,0.00019178,2]
[368287378,1751093433407,-464.98198905,0.00019178,2]
[368287379,1751093433418,-460.0,0.00019178,2]
[368287380,1751093433429,-436.47390211,0.00019178,2]
[368287381,1751093433441,-315.88111285,0.00019178,2]
[368287382,1751093433452,-460.0,0.00019178,2]
[368287383,1751093433463,-462.31960721,0.00019178,2]
[368287384,1751093433474,-460.0,0.00019178,2]
[368287385,1751093433486,-460.06937295,0.00019178,2]
[368287386,1751093433497,-460.0,0.00019178,2]
[368287387,1751093433509,-460.0,0.00019178,2]
[368287388,1751093433522,-460.0,0.00019178,2]
[368287389,1751093433533,-1588.55,0.00019178,2]
[368287390,1751093433544,-460.0,0.00019178,2]
[368287391,1751093433557,-460.0,0.00019178,2]
[368287392,1751093433569,-460.0,0.00019178,2]
[368287393,1751093433585,-460.0,0.00019178,2]
[368287394,1751093433596,-460.0,0.00019178,2]
[368287395,1751093433608,-333.73671688,0.00019178,2]
[368287396,1751093433619,-460.0,0.00019178,2]
[368287397,1751093433630,-460.0,0.00019178,2]
[368287398,1751093433640,-460.0,0.00019178,2]
[368287399,1751093433651,-460.0,0.00019178,2]
[368287400,1751093433663,-460.0,0.00019178,2]
[368287401,1751093433675,-151.86772385,0.00019178,2]
[368287402,1751093433686,-1201.39,0.00019178,2]
[368287403,1751093433699,-152.63854138,0.00019178,2]
[368287404,1751093433711,-737.5,0.00019178,2]
[368287405,1751093433722,-151.0,0.00019178,2]
[368287406,1751093433734,-435.61222554,0.00019178,2]
[368287407,1751093433745,-460.0,0.00019178,2]
[368287408,1751093433756,-460.0,0.00019178,2]
[368287409,1751093433768,-154.30293238,0.00019178,2]
[368287410,1751093433779,-157.24771066,0.00019178,2]
[368287411,1751093433791,-460.0,0.00019178,2]
[368287412,1751093433802,-460.0,0.00019178,2]
[368287413,1751093433813,-460.0,0.00019178,2]
[368287414,1751093433825,-460.0,0.00019178,2]
[368287415,1751093433836,-3189.35,0.00019178,2]
[368287416,1751093433847,-436.40730184,0.00019178,2]
[368287417,1751093433859,-2660.02,0.00019178,2]
[368287418,1751093433870,-198.775164,0.00019178,2]